{"text_format":"3","workbook":"xlsx","n_sheets":6,"sheets":["PRICING SCHEDULE","Nelspruit","Middelburg","Sheet1","Price Schedule","Required"],"not_rendered":{"images":1,"defined_names":2},"read":"whole","date_system":"1900"}

{"sheet":"PRICING SCHEDULE","index":0,"n_rows":68,"n_cols":12,"rows_kept":68,"hidden":true,"merged":[[39,2,39,11],[56,1,59,1],[56,2,56,5],[56,6,56,7],[57,2,57,5],[57,6,57,7],[58,2,58,5],[58,6,58,7],[59,2,59,5],[59,6,59,7]]}
[null,"SUPPLY CHAIN MANAGEMENT"]
[null,"Pricing schedule "]
["RFQ No"]
["RFQ Title","PROVISION OF CLEANING AND HYGIENE SERVICES FOR SITA LIMPOPO OFFICES FOR A PERIOD OF THIRTY-SIX (36) MONTHS"]
["Bidder Name "]
[]
["1. INSTRUCTION FOR COMPLETING THE PRICING SCHEDULE"]
["(a)  Bidder must complete/enter YELLOW cells only"]
["(b)  Unit and Line prices must be VAT EXCLUSIVE and in South African Rand (ZAR) currency."]
["(c) The price must include all cost to deliver the goods or render the service, including all applicable taxes, duty fees, logistics/delivery, storage, labour, overtime and subsistance and travel"]
[]
["Item No","Goods/Service description\nNelspruit Office","Unit of measure","Forex %","Qty ","Unit/Monthly Price Y1\n(Excl VAT","Line/Annual Price Y1","Unit/Monthly Price Y2\n(Excl VAT)","Line/Annual Price Y2","Unit/Monthly Price Y3\n(Excl VAT)","Line/Annual Price Y3","TOTAL CONTRACT VALUE"]
[1,"SITA MPUMALANGA- CLEANING & HYGIENE SERVICES\nNELSPRUIT OFFICE",{"$nulls":4},{"$f":"SUBTOTAL(9,G14:G31)","v":{"v":61850,"d":"R61,850.00"}},null,{"$f":"SUBTOTAL(9,I14:I31)","v":{"v":26280,"d":"R26,280.00"}},null,{"$f":"SUBTOTAL(9,K14:K31)","v":{"v":30000,"d":"R30,000.00"}},{"$f":"SUBTOTAL(9,L14:L31)","v":{"v":236260,"d":"R236,260.00"}}]
["1.1","Full-time Cleaners (40 hours a week) Nelspruit & Middelburg Office","No. of Person","n/a",1,null,{"$f":"F14*12","v":0},null,{"$f":"H14*12","v":0},null,{"$f":"J14*12","v":0},{"$f":"G14+I14+K14","v":0}]
["1.4","Supply of monthly cleaning and hygiene consumables/material ","Monthly","n/a",12,null,{"$f":"F15*12","v":0},null,{"$f":"H15*12","v":0},null,0,{"$f":"G15+I15+K15","v":0}]
["1.5","Deep cleaning of toilets monthly","Monthly","n/a",12,{"v":340,"d":"R340.00"},{"$f":"F16*12","v":{"v":4080,"d":"R4,080.00"}},{"v":420,"d":"R420.00"},{"$f":"H16*12","v":{"v":5040,"d":"R5,040.00"}},{"v":470,"d":"R470.00"},{"v":5640,"d":"R5,640.00"},{"v":14760,"d":"R14,760.00"}]
["1.6","Deep cleaning of carperts and couches (Quarterly)","Quarterly","n/a",4,null,{"$f":"F17*4","v":0},null,{"$f":"H17*4","v":0},null,{"$f":"J17*4","v":0},0]
["1.7","Deep Cleaning of Chairs / couches (Bi-Annually)","Bi-annualy","n/a",2,null,{"$f":"F18*2","v":0},null,{"$f":"H18*2","v":0},null,{"$f":"J18*2","v":0},0]
["1.8","Sanitary Bin Service/ waste removal (twice a month)","Bi-Weekly","n/a",24,{"v":190,"d":"R190.00"},{"$f":"F19*24","v":{"v":4560,"d":"R4,560.00"}},{"v":220,"d":"R220.00"},{"$f":"H19*24","v":{"v":5280,"d":"R5,280.00"}},{"v":250,"d":"R250.00"},{"$f":"J19*24","v":{"v":6000,"d":"R6,000.00"}},{"v":15840,"d":"R15,840.00"}]
["1.9","Decontamination","monthly","n/a",12,null,0,null,0,null,0,{"$f":"G20+I20+K20","v":0}]
[2,"Hygiene Dispensers/ equipment/ sanitary bins maintenance Maintenance",{"$nulls":4},0,null,0,null,0,{"$f":"G21+I21+K21","v":0}]
[2.1,"\n1. Wall waste bins ( with inner dressing  bin bags) - x5\n2. Touch free Handpaper towel dispencer - (suitable for the supplied handpaper towel) x5\n3. She Packet Dispensers  x4\n4. Disinfactant Handsoap Dispenser (foam) (x5)\n5. Hand sanitiser dispenser x5\n6. Sanitary bins (with bin bags for sanitary waste disposal) 5\n7. Air-mist dispensers 6","Monthly","n/a",12,{"v":1590,"d":"R1,590.00"},{"v":19080,"d":"R19,080.00"},{"v":1330,"d":"R1,330.00"},{"v":15960,"d":"R15,960.00"},{"v":1530,"d":"R1,530.00"},{"v":18360,"d":"R18,360.00"},{"$f":"G22+I22+K22","v":{"v":53400,"d":"R53,400.00"}}]
[3,"Supply of Hygiene Dispensers/ equipment/ sanitary bins (Once off supply & installation)",{"$nulls":9},{"$f":"SUM(L14:L22)","v":{"v":84000,"d":"R84,000.00"}}]
[3.1,"Wall waste bins ( with inner dressing  bin bags) - x5","once off",null,5,{"v":1110,"d":"R1,110.00"},{"$f":"F24*5","v":{"v":5550,"d":"R5,550.00"}},{"$f":"F24/5","v":{"v":222,"d":"R222.00"}},{"$nulls":3},{"$f":"G24+I24+K24","v":{"v":5550,"d":"R5,550.00"}}]
[3.2,"2. Touch free Handpaper towel dispencer - (suitable for the supplied handpaper towel) x5","once off",null,5,{"v":990,"d":"R990.00"},{"$f":"F25*8","v":{"v":7920,"d":"R7,920.00"}},{"$f":"F25/5","v":{"v":198,"d":"R198.00"}},{"$nulls":3},{"v":7920,"d":"R7,920.00"}]
[3.3,"3. She Packet Dispensers  x4","once off",null,4,{"v":590,"d":"R590.00"},{"$f":"F26*4","v":{"v":2360,"d":"R2,360.00"}},0,{"$nulls":3},{"v":2360,"d":"R2,360.00"}]
[3.4,"4. Disinfactant Handsoap Dispenser (foam) x5","once off",null,5,{"v":990,"d":"R990.00"},{"$f":"F27*5","v":{"v":4950,"d":"R4,950.00"}},0,{"$nulls":3},{"v":4950,"d":"R4,950.00"}]
[3.5,"5. Hand sanitiser dispenser x5","once off",null,5,{"v":990,"d":"R990.00"},{"$f":"F28*5","v":{"v":4950,"d":"R4,950.00"}},{"$f":"F28/5","v":{"v":198,"d":"R198.00"}},{"$nulls":3},{"v":4950,"d":"R4,950.00"}]
[3.6,"6. Sanitary bins (with bin bags for sanitary waste disposal) x4","once off",null,4,{"v":1110,"d":"R1,110.00"},{"$f":"F29*4","v":{"v":4440,"d":"R4,440.00"}},0,{"$nulls":3},{"v":4440,"d":"R4,440.00"}]
[3.7,"7. Air-mist dispensers x6","once off",null,6,{"v":660,"d":"R660.00"},{"$f":"F30*6","v":{"v":3960,"d":"R3,960.00"}},{"$f":"F30/1","v":{"v":660,"d":"R660.00"}},{"$nulls":3},{"v":3960,"d":"R3,960.00"}]
[{"$nulls":7},{"$f":"SUM(H24:H30)","v":{"v":1278,"d":"R1,278.00"}},{"$nulls":3},{"$f":"SUM(L24:L30)","v":{"v":34130,"d":"R34,130.00"}}]
[1,"SITA MPUMALANGA- CLEANING & HYGIENE SERVICES\nMIDDELBURG OFFICE",{"$nulls":4},{"$f":"SUBTOTAL(9,G33:G50)","v":{"v":14740,"d":"R14,740.00"}},null,{"$f":"SUBTOTAL(9,I33:I50)","v":{"v":12240,"d":"R12,240.00"}},null,{"$f":"SUBTOTAL(9,K33:K50)","v":{"v":12240,"d":"R12,240.00"}},{"$f":"SUBTOTAL(9,L33:L50)","v":{"v":39220,"d":"R39,220.00"}}]
["1.1","Full-time Cleaners (40 hours a week) Middelburg Office","No. of Person","n/a",1,{"v":120,"d":"R120.00"},{"$f":"F33*12","v":{"v":1440,"d":"R1,440.00"}},{"v":120,"d":"R120.00"},{"$f":"H33*12","v":{"v":1440,"d":"R1,440.00"}},{"v":120,"d":"R120.00"},{"$f":"J33*12","v":{"v":1440,"d":"R1,440.00"}},{"$f":"G33+I33+K33","v":{"v":4320,"d":"R4,320.00"}}]
["1.4","Supply of monthly cleaning and hygiene consumables/material ","Monthly","n/a",12,{"v":120,"d":"R120.00"},{"$f":"F34*12","v":{"v":1440,"d":"R1,440.00"}},{"v":120,"d":"R120.00"},{"v":1440,"d":"R1,440.00"},{"v":120,"d":"R120.00"},{"$f":"J34*12","v":{"v":1440,"d":"R1,440.00"}},{"$f":"G34+I34+K34","v":{"v":4320,"d":"R4,320.00"}}]
["1.5","Deep cleaning of toilets monthly","Monthly","n/a",12,{"v":120,"d":"R120.00"},{"v":1440,"d":"R1,440.00"},{"v":120,"d":"R120.00"},{"v":1440,"d":"R1,440.00"},{"v":120,"d":"R120.00"},{"$f":"J35*12","v":{"v":1440,"d":"R1,440.00"}},{"v":4320,"d":"R4,320.00"}]
["1.6","Deep cleaning of carperts and couches (Quarterly)","Quarterly","n/a",4,{"v":120,"d":"R120.00"},{"$f":"F36*4","v":{"v":480,"d":"R480.00"}},{"v":120,"d":"R120.00"},{"$f":"H36*4","v":{"v":480,"d":"R480.00"}},{"v":120,"d":"R120.00"},{"$f":"J36*4","v":{"v":480,"d":"R480.00"}},{"v":1440,"d":"R1,440.00"}]
["1.7","Deep Cleaning of Chairs / couches (Bi-Annually)","Bi-annualy","n/a",2,{"v":120,"d":"R120.00"},{"$f":"F37*2","v":{"v":240,"d":"R240.00"}},{"v":120,"d":"R120.00"},{"$f":"H37*2","v":{"v":240,"d":"R240.00"}},{"v":120,"d":"R120.00"},{"$f":"J37*2","v":{"v":240,"d":"R240.00"}},{"v":720,"d":"R720.00"}]
["1.8","Sanitary Bin Service/ waste removal (twice a month)","Bi-Weekly","n/a",48,{"v":120,"d":"R120.00"},{"$f":"F38*48","v":{"v":5760,"d":"R5,760.00"}},{"v":120,"d":"R120.00"},{"$f":"H38*48","v":{"v":5760,"d":"R5,760.00"}},{"v":120,"d":"R120.00"},{"$f":"J38*48","v":{"v":5760,"d":"R5,760.00"}},{"v":17280,"d":"R17,280.00"}]
["1.9","Decontamination","monthly","n/a",12,{"v":120,"d":"R120.00"},{"v":1440,"d":"R1,440.00"},{"v":120,"d":"R120.00"},{"v":1440,"d":"R1,440.00"},{"v":120,"d":"R120.00"},{"$f":"J39*12","v":{"v":1440,"d":"R1,440.00"}},{"$f":"G39+I39+K39","v":{"v":4320,"d":"R4,320.00"}}]
[2,"Hygiene Dispensers/ equipment/ sanitary bins Maintenance ( MIDDELBURG OFFICE)"]
[2.1,"1. Wall waste bins ( with inner dressing  bin bags) - x4\n2. Touch free Handpaper towel dispencer - (suitable for the supplied handpaper towel) x4\n3. She Packet Dispensers  x2\n4. Disinfactant Handsoap Dispenser (foam) (x4\n5. Hand sanitiser dispenser x4\n6. Sanitary bins (with bin bags for sanitary waste disposal) 2\n7. Air-mist dispensers 6","Monthly","n/a",12,null,0,null,{"$f":"H41*12","v":0},null,{"$f":"J41*12","v":0},{"$f":"G41+I41+K41","v":0}]
[3,"Supply of Hygiene Dispensers/ equipment/ sanitary bins (Once off supply & installation)\n(MIDDELBURG OFFICE)"]
[3.1,"Wall waste bins ( with inner dressing  bin bags) - x4","once off",null,4,{"v":100,"d":"R100.00"},{"$f":"F43*4","v":{"v":400,"d":"R400.00"}},0,null,0,null,{"$f":"G43+I43+K43","v":{"v":400,"d":"R400.00"}}]
[3.2,"2. Touch free Handpaper towel dispencer - (suitable for the supplied handpaper towel) x4","once off",null,4,{"v":100,"d":"R100.00"},{"$f":"F44*4","v":{"v":400,"d":"R400.00"}},0,null,0,null,{"v":400,"d":"R400.00"}]
[3.3,"3. She Packet Dispensers  x2","once off",null,2,{"v":100,"d":"R100.00"},{"$f":"F45*1","v":{"v":100,"d":"R100.00"}},0,null,0,null,{"v":100,"d":"R100.00"}]
[3.4,"4. Disinfactant Handsoap Dispenser (foam) x4","once off",null,4,{"v":100,"d":"R100.00"},{"$f":"F46*4","v":{"v":400,"d":"R400.00"}},0,null,0,null,{"v":400,"d":"R400.00"}]
[3.5,"5. Hand sanitiser dispenser x4","once off",null,4,{"v":100,"d":"R100.00"},{"v":400,"d":"R400.00"},0,null,0,null,{"v":400,"d":"R400.00"}]
[3.6,"6. Sanitary bins (with bin bags for sanitary waste disposal) x2","once off",null,2,{"v":100,"d":"R100.00"},{"$f":"F48*2","v":{"v":200,"d":"R200.00"}},0,null,0,null,{"v":200,"d":"R200.00"}]
[3.7,"7. Air-mist dispensers 10","once off",null,6,{"v":100,"d":"R100.00"},{"$f":"F49*6","v":{"v":600,"d":"R600.00"}},0,null,0,null,{"v":600,"d":"R600.00"}]
[{"$nulls":9},0]
[]
[null,"TOTAL BID PRICE  (EXCL VAT)",{"$nulls":4},{"$f":"SUBTOTAL(9,G13:G51)","v":{"v":76590,"d":"R76,590.00"}},null,{"$f":"SUBTOTAL(9,I13:I51)","v":{"v":38520,"d":"R38,520.00"}},null,{"$f":"SUBTOTAL(9,K13:K51)","v":{"v":42240,"d":"R42,240.00"}},{"$f":"SUBTOTAL(9,L13:L51)","v":{"v":275480,"d":"R275,480.00"}}]
[null,"VAT (@15%)",{"$nulls":4},{"$f":"G52*0.15","v":{"v":11488.5,"d":"R11,488.50"}},null,{"$f":"I52*0.15","v":{"v":5778,"d":"R5,778.00"}},null,{"$f":"K52*0.15","v":{"v":6336,"d":"R6,336.00"}},{"$f":"L52*0.15","v":{"v":41322,"d":"R41,322.00"}}]
[null,"TOTAL  BID PRICE (INCL VAT)",{"$nulls":4},{"$f":"G52+G53","v":{"v":88078.5,"d":"R88,078.50"}},null,{"$f":"I52+I53","v":{"v":44298,"d":"R44,298.00"}},null,{"$f":"K52+K53","v":{"v":48576,"d":"R48,576.00"}},{"$f":"L52+L53","v":{"v":316802,"d":"R316,802.00"}}]
[]
[]
[null,"I, the bidder, confirm that the price(s) and rate(s) quoted cover all the goods and/or works specified in the bidding documents; that the price(s) or rate(s) cover all my obligations and I accept that any mistakes regarding price(s), rate(s) or calculations will be at my own risk.\n[Note: First convert to PDF, then add signature]"]
[null,null,"Name",{"$nulls":3},"Capacity"]
[]
[null,null,"Signature (above)",{"$nulls":3},"Date"]
[]
[null,"Wall waste bins ( with inner dressing  bin bags) - x5"]
[null,"Touch free Hand paper towel dispenser - (suitable for the supplied hand paper towel) x5"]
[null,"She Packet Dispensers  x4"]
[null,"Disinfectant Hand soap Dispenser (foam) (x)5"]
[null,"Hand sanitiser dispenser (5"]
[null,"Sanitary bins (with bin bags for sanitary waste disposal) x5"]
[null,"Air-mist dispensers 6"]

{"sheet":"Nelspruit","index":1,"n_rows":49,"n_cols":5,"rows_kept":49,"hidden":true,"merged":[[0,0,0,4],[1,0,1,4],[20,0,20,4],[21,1,21,4],[22,1,38,4],[39,0,39,4],[40,0,40,4],[41,0,41,4],[42,1,48,4]]}
["NELSPRUIT"]
["Cleaning and hygiene consumables & material required for the duration of the contract and not limited to:"]
["Description","Capacity","Quantity","Yearly ","3 years"]
["DOUBLE PLY GOOD QUALITY TOILET PAPER","48 in a  Bale","x3 Bales monthly ",{"$f":"48*3*12","v":1728},{"$f":"D4*3","v":5184}]
["GOOD QUALITY BLACK REFUSE BAGS (large)","Bag of 20","x3Bags monthly",{"$f":"20*3*12","v":720},{"$f":"D5*3","v":2160}]
["SMALL WASTE BAGS","BAG of 200","1x Bags monthly",{"$f":"200*12","v":2400},{"$f":"D6*3","v":7200}]
["SANITIZING DISINFECTANT WIPES 100'S","100 SHEETS (BUCKET)","x2 buckets quarterly",20,60]
["AIR-MIST REFILLS ( fit the dispenser supplied)","750ml","10 quarterly",48,144]
["AIRFRESHNER SPRAYS","750ml","x4 monthly",48,144]
["SURFACE SPRAY TO CLEAN DESKS (750ml) (FURNITURE POLISH)","750 ml","x4monthly",48,144]
["MULTIPURPOSE CLEANER","5L","4xmonthly",48,144]
["TOILET BOWL CLEANER","5L","x1quarterly",{"$f":"1*12","v":12},{"$f":"D12*3","v":36}]
["DISINFECTANT HAND WASH FOAM","5L","x3monthly",{"$f":"3*12","v":36},108]
["DISHWASHING LIQUID ( GOOD QUALITY)","5L","x4 monthly",{"$f":"1*4*12","v":48},144]
["PAPER HANDTOWELS (must fit the dispenser supplied)","6 in a Bale","x3 bales monthly",{"$f":"6*4*12","v":288},864]
["BLEACH","5L","x2 monthly",{"$f":"1*2*12","v":24},72]
["ANTI-BACTERIAL HAND SANITISER (70+% ALCOHOL)","5L","x2 monthly",{"$f":"1*2*12","v":24},72]
["MALE URINAL SCREENS/PMATS","10 in a box","x1 boxes monthly",{"$f":"1*12","v":12},36]
["DEO BLOCKS 200g.","12 in  a pack","x2 packs monthly",{"$f":"24*12","v":288},864]
["WINDOW CLEANER","5L","x1 quarterly",{"$f":"1*12","v":12},36]
["Minimum cleaning equipment and tools required for the duration of the contract and not limited to:"]
["Description"]
["MINIMUM 400 GRAM MOPS","Once off and replace as and when depleted/damaged"]
["BROOMS"]
["DUST PANS AND BRUSH"]
["DISHCLOTHS FOR DRYING OF DISHES"]
["SWABS FOR WASHING DISHES ( coloured)"]
["SCOURERS"]
["DUSTER CLOTHS"]
["TOILET BRUSHERS"]
["SHORT FEATHER DUSTERS"]
["TOILET BRUSHERS"]
["WINDOW WASHER WITH EXTENDABLE HANDLE"]
["THICK HOUSEHOLD GLOVES"]
["LONG FEATHER DUSTERS"]
["SCRUBBING BRUSHES"]
["MOP TROLLEYS "]
["VACUUM CLEANERS "]
["STEP LADDER "]
["TABLE 3 "]
["Suppy and  Installation  (once off) of  hygiene dispensers/units (x48)"]
["Description"]
["Wall waste bins ( with inner dressing  bin bags) - x5","Total 30"]
["Touch free Hand paper towel dispenser - (suitable for the supplied hand paper towel) x5"]
["She Packet Dispensers  x4"]
["Disinfectant Hand soap Dispenser (foam) (x)5"]
["Hand sanitiser dispenser (5"]
["Sanitary bins (with bin bags for sanitary waste disposal) x5"]
["Air-mist dispensers 6"]

{"sheet":"Middelburg","index":2,"n_rows":49,"n_cols":5,"rows_kept":49,"hidden":true,"merged":[[0,0,0,4],[1,0,1,4],[20,0,20,4],[21,1,21,4],[22,1,38,4],[39,0,39,4],[40,0,40,4],[41,0,41,4],[42,1,48,4]]}
["MIDDELBURG"]
["Cleaning and hygiene consumables & material required for the duration of the contract and not limited to:"]
["Description","Capacity","Quantity Monthly","Yearly ","3 years"]
["DOUBLE PLY GOOD QUALITY TOILET PAPER","48 in a  Bale","x2 Bales monthly ",{"$f":"48*2*12","v":1152},{"$f":"D4*3","v":3456}]
["GOOD QUALITY BLACK REFUSE BAGS (large)","Bag of 20","x2Bags monthly",{"$f":"20*2*12","v":480},1440]
["SMALL WASTE BAGS","BAG of 200","1x Bags monthly",{"$f":"200*12","v":2400},7200]
["SANITIZING DISINFECTANT WIPES 100'S","100 SHEETS (BUCKET)","x1buckets quarterly",{"$f":"1*12","v":12},36]
["AIR-MIST REFILLS ( fit the dispenser supplied)","750ml","5 quarterly",{"$f":"5*4","v":20},60]
["AIRFRESHNER SPRAYS","750ml","x4 monthly",{"$f":"4*12","v":48},144]
["SURFACE SPRAY TO CLEAN DESKS (750ml) (FURNITURE POLISH)","750 ml","x2monthly",{"$f":"2*12","v":24},72]
["MULTIPURPOSE CLEANER","5L","2xmonthly",{"$f":"2*12","v":24},72]
["TOILET BOWL CLEANER","5L","x1quarterly",{"$f":"1*4","v":4},12]
["DISINFECTANT HAND WASH FOAM","5L","x2monthly",{"$f":"2*12","v":24},72]
["DISHWASHING LIQUID ( GOOD QUALITY)","5L","x3monthly",{"$f":"1*3*12","v":36},108]
["PAPER HANDTOWELS (must fit the dispenser supplied)","6 in a Bale","x2 bales monthly",{"$f":"6*2*12","v":144},432]
["BLEACH","5L","x2 monthly",{"$f":"1*2*12","v":24},72]
["ANTI-BACTERIAL HAND SANITISER (70+% ALCOHOL)","5L","x1 monthly",{"$f":"1*1*12","v":12},36]
["MALE URINAL SCREENS/PMATS","10 in a box","x1 boxes monthly",{"$f":"10*1*12","v":120},360]
["DEO BLOCKS 200g.","12 in  a pack","x1 packs monthly",{"$f":"1*12","v":12},36]
["WINDOW CLEANER","5L","x1 quarterly",{"$f":"1*12","v":12},36]
["Minimum cleaning equipment and tools required for the duration of the contract and not limited to:"]
["Description"]
["MINIMUM 400 GRAM MOPS","Once off and replace as and when depleted/damaged"]
["BROOMS"]
["DUST PANS AND BRUSH"]
["DISHCLOTHS FOR DRYING OF DISHES"]
["SWABS FOR WASHING DISHES ( coloured)"]
["SCOURERS"]
["DUSTER CLOTHS"]
["TOILET BRUSHERS"]
["SHORT FEATHER DUSTERS"]
["TOILET BRUSHERS"]
["WINDOW WASHER WITH EXTENDABLE HANDLE"]
["THICK HOUSEHOLD GLOVES"]
["LONG FEATHER DUSTERS"]
["SCRUBBING BRUSHES"]
["MOP TROLLEYS "]
["VACUUM CLEANERS "]
["STEP LADDER "]
["TABLE 3 "]
["Suppy and  Installation  (once off) of  hygiene dispensers/units (x48)"]
["Description"]
["Wall waste bins ( with inner dressing  bin bags) - x4","Total 26"]
["Touch free Hand paper towel dispenser - (suitable for the supplied hand paper towel) 4"]
["She Packet Dispensers  x2"]
["Disinfectant Hand soap Dispenser (foam) (x)4"]
["Hand sanitiser dispenser (4)"]
["Sanitary bins (with bin bags for sanitary waste disposal) x2"]
["Air-mist dispensers 6"]

{"sheet":"Sheet1","index":3,"n_rows":20,"n_cols":1,"rows_kept":20,"hidden":true}
["Cleaners (40 hours a week)"]
["Periodically cleaners (27 hours a week)"]
["Ablution of wash-rooms & toilets once a month"]
["Deep cleaning of carpets and couches – quarterly"]
["Deep cleaning of chairs - quarterly"]
["Surface cleaning detergents 5 L"]
["Provision & servicing of Sanitary Bins"]
["Toilet papers single ply (500 sheets) per unit"]
["Antibacterial Hand Soap/Foam (800ml - 1 L)"]
["Paper Towels (150ml/500 sheets)"]
["Airfreshner "]
["Multi Surface/ Wood Polish (750 ml-1 L)"]
["Multipurpose cleaner (750ml)"]
["Dishwasher soap (750ml)"]
["Bleach (750ml)"]
["Dish swabs small- medium (5 for washing/ 5 microfibre for drying)"]
["Scourer"]
["Refuse Bag Big (pack of 20)"]
["Small Waste Bag (pack of 200)"]
["Decontamination "]

{"sheet":"Price Schedule","index":4,"n_rows":33,"n_cols":12,"rows_kept":33,"merged":[[27,0,27,2],[29,1,32,1],[29,2,29,5],[29,6,29,7],[30,2,30,5],[30,6,30,7],[31,2,31,5],[31,6,31,7],[32,2,32,5],[32,6,32,7]]}
[null,"SUPPLY CHAIN MANAGEMENT"]
[null,"Pricing schedule "]
["RFB","RFB 3239-2026"]
["RFB","PROVISION OF CLEANING AND HYGIENE SERVICES FOR SITA FREE STATE (BLOEMFONTEIN, DOD AND WELKOM) OFFICES FOR A PERIOD OF THIRTY-SIX (36) MONTHS"]
["Bidder Name "]
[]
["1. INSTRUCTION FOR COMPLETING THE PRICING SCHEDULE"]
["(a) Bidder must complete/enter YELLOW cells only, and do not change the formulas"]
["(b) Unit and Line prices must be VAT EXCLUSIVE and in South African Rand (ZAR) currency."]
["(c) The price must include all cost to deliver the goods or render the service, including all applicable taxes, duty fees, logistics/delivery, storage, labour, overtime and subsistance and travel"]
[]
["Item No","Goods/Service description","Unit of measure","Forex %","Qty ","Unit/Monthly/Quarterly Price Y1\n(Excl VAT)","Line/Annual Price Y1","Unit/Monthly/Quarterly Price Y2\n(Excl VAT)","Line/Annual Price Y2","Unit/Monthly/Quarterly Price Y3\n(Excl VAT)","Line/Annual Price Y3","TOTAL CONTRACT VALUE"]
[1,"SITA Free State Cleaning & Hygiene Services - (Bloemfontein Head Office, Bloemfontein DOD & SAPS Welkom Offices)",{"$nulls":4},{"$f":"SUM(G14:G22)","v":0},null,{"$f":"SUM(I14:I22)","v":0},null,{"$f":"SUM(K14:K22)","v":0},{"$f":"SUM(L14:L22)","v":0}]
["1.1","Full-Time Cleaner (40 hours a week) Bloemfontein Office","Per Person","n/a",1,0,{"$f":"F14*12","v":0},0,{"$f":"H14*12","v":0},0,{"$f":"J14*12","v":0},{"$f":"G14+I14+K14","v":0}]
["1.2","Periodic Cleaner( Mondays to Fridays (Two days a week, 4 hours each @ SITA Bloemfontein DOD Office)","Per Person",null,1,0,{"$f":"F15*12","v":0},0,{"$f":"H15*12","v":0},0,{"$f":"J15*12","v":0},{"$f":"G15+I15+K15","v":0}]
["1.3","Periodic Cleaner ( Mondays to Fridays (Two days a week, 4 hours each @ SITA Welkom SAPS Office)","Per Person",null,1,0,0,0,0,0,0,0]
["1.4","Supply of Monthly Cleaning and Hygiene Consumables/Material ","Monthly","n/a",12,0,{"$f":"F17*12","v":0},0,0,0,{"$f":"J17*12","v":0},{"$f":"G17+I17+K17","v":0}]
["1.5","Deep Cleaning of Toilets (Bloemfontein Main Office & DOD)","Monthly","n/a",12,0,0,0,0,0,0,0]
["1.6","Deep Cleaning of Carperts (See attached Annexure B of the Bid Specification) (Bloemfontein Head Office & DOD)","Quarterly","n/a",4,0,{"$f":"F19*4","v":0},0,{"$f":"H19*4","v":0},0,{"$f":"J19*4","v":0},0]
["1.7","Deep Cleaning of Chairs /Couches (See attached Annexure B of the Bid Specification)","Bi-Annually","n/a",2,0,{"$f":"F20*2","v":0},0,{"$f":"H20*2","v":0},0,{"$f":"J20*2","v":0},0]
["1.8","Sanitary Bin Service/ Waste Removal  (Bloemfontein & DOD)","Bi-Monthly","n/a",24,0,{"$f":"F21*24","v":0},0,{"$f":"H21*24","v":0},0,{"$f":"J21*24","v":0},0]
["1.9","Decontamination","Monthly","n/a",12,0,0,0,0,0,{"$f":"J22*12","v":0},{"$f":"G22+I22+K22","v":0}]
[2,"Maintenance/Servicing of Hygiene Dispensers/ Equipment/ Sanitary Bins \n(Once off supply and installation at bidder's own cost)",{"$nulls":4},{"$f":"G24","v":0},null,{"$f":"I24","v":0},null,{"$f":"K24","v":0},{"$f":"L24","v":0}]
["2.1","a) SHE/Sanitary bins (with bin bags for sanitary waste disposal) x 4\nb) Paper towel dispenser (automated) x4\nc) SHE Packet Dispensers   x 4\nd) Disinfectant Hand soap Dispenser (foam) x 4\ne) Hand sanitiser dispenser x 5\nf) Air-mist dispensers x 6","Monthly","n/a",12,0,0,0,{"$f":"H24*12","v":0},0,{"$f":"J24*12","v":0},{"$f":"G24+I24+K24","v":0}]
[null,"TOTAL BID PRICE  (EXCL VAT)",{"$nulls":4},{"$f":"G23+G13","v":0},null,{"$f":"I23+I13","v":0},null,{"$f":"K23+K13","v":0},{"$f":"L23+L13","v":0}]
[null,"VAT (@15%)",{"$nulls":4},{"$f":"G27-G25","v":0},null,{"$f":"I27-I25","v":0},null,{"$f":"K27-K25","v":0},{"$f":"L27-L25","v":0}]
[null,"TOTAL  BID PRICE (INCL VAT)",{"$nulls":4},{"$f":"G25*1.15","v":0},null,{"$f":"I25*1.15","v":0},null,{"$f":"K25*1.15","v":0},{"$f":"L25*1.15","v":0}]
[]
[]
[null,"I, the bidder, confirm that the price(s) and rate(s) quoted cover all the goods and/or works specified in the bidding documents; that the price(s) or rate(s) cover all my obligations and I accept that any mistakes regarding price(s), rate(s) or calculations will be at my own risk.\n[Note: First convert to PDF, then add signature]"]
[null,null,"Name",{"$nulls":3},"Capacity"]
[]
[null,null,"Signature (above)",{"$nulls":3},"Date"]

{"sheet":"Required","index":5,"n_rows":68,"n_cols":13,"rows_kept":68,"hidden":true,"merged":[[39,2,39,11],[56,1,59,1],[56,2,56,5],[56,6,56,7],[57,2,57,5],[57,6,57,7],[58,2,58,5],[58,6,58,7],[59,2,59,5],[59,6,59,7]]}
[null,"SUPPLY CHAIN MANAGEMENT"]
[null,"Pricing schedule "]
["RFQ No"]
["RFQ Title","PROVISION OF CLEANING AND HYGIENE SERVICES FOR SITA LIMPOPO OFFICES FOR A PERIOD OF THIRTY-SIX (36) MONTHS"]
["Bidder Name "]
[]
["1. INSTRUCTION FOR COMPLETING THE PRICING SCHEDULE"]
["(a)  Bidder must complete/enter YELLOW cells only"]
["(b)  Unit and Line prices must be VAT EXCLUSIVE and in South African Rand (ZAR) currency."]
["(c) The price must include all cost to deliver the goods or render the service, including all applicable taxes, duty fees, logistics/delivery, storage, labour, overtime and subsistance and travel"]
[]
["Item No","Goods/Service description\nNelspruit Office","Unit of measure","Forex %","Qty ","Unit/Monthly Price Y1\n(Excl VAT","Line/Annual Price Y1","Unit/Monthly Price Y2\n(Excl VAT)","Line/Annual Price Y2","Unit/Monthly Price Y3\n(Excl VAT)","Line/Annual Price Y3","TOTAL CONTRACT VALUE"]
[1,"SITA MPUMALANGA- CLEANING & HYGIENE SERVICES\nNELSPRUIT OFFICE",{"$nulls":3},{"$f":"SUBTOTAL(9,F14:F31)","v":{"v":8560,"d":"R8,560.00"}},{"v":61850,"d":"R61,850.00"},{"v":1970,"d":"R1,970.00"},{"v":26280,"d":"R26,280.00"},{"v":2250,"d":"R2,250.00"},{"v":30000,"d":"R30,000.00"},{"$f":"G13+I13+K13","v":{"v":118130,"d":"R118,130.00"}}]
["1.1","Full-time Cleaners (40 hours a week) Nelspruit & Middelburg Office","No. of Person","n/a",1,null,{"$f":"F14*12","v":0},null,{"$f":"H14*12","v":0},null,{"$f":"J14*12","v":0},{"$f":"G14+I14+K14","v":0},"Yes"]
["1.2","Supply of monthly cleaning and hygiene consumables/material ","Monthly","n/a",12,null,{"$f":"F15*12","v":0},null,0,null,0,{"$f":"G15+I15+K15","v":0},"Yes - see revised list"]
["1.3","Deep cleaning of toilets monthly","Monthly","n/a",12,{"v":340,"d":"R340.00"},{"$f":"F16*12","v":{"v":4080,"d":"R4,080.00"}},{"v":420,"d":"R420.00"},{"v":5040,"d":"R5,040.00"},{"v":470,"d":"R470.00"},{"v":5640,"d":"R5,640.00"},{"v":14760,"d":"R14,760.00"},"No"]
["1.4","Deep cleaning of carperts and couches (Quarterly)","Quarterly","n/a",4,null,{"$f":"F17*4","v":0},null,{"$f":"H17*4","v":0},null,{"$f":"J17*4","v":0},0,"Yes"]
["1.5","Deep Cleaning of Chairs / couches (Bi-Annually)","Bi-annualy","n/a",2,null,{"$f":"F18*2","v":0},null,{"$f":"H18*2","v":0},null,{"$f":"J18*2","v":0},0,"Yes"]
["1.6","Sanitary Bin Service/ waste removal (twice a month)","Bi-Weekly","n/a",24,{"v":190,"d":"R190.00"},{"$f":"F19*24","v":{"v":4560,"d":"R4,560.00"}},{"v":220,"d":"R220.00"},{"$f":"H19*24","v":{"v":5280,"d":"R5,280.00"}},{"v":250,"d":"R250.00"},{"$f":"J19*24","v":{"v":6000,"d":"R6,000.00"}},{"v":15840,"d":"R15,840.00"},"No"]
["1.7","Decontamination","monthly","n/a",12,null,0,null,0,null,0,{"$f":"G20+I20+K20","v":0},"No"]
[2,"Hygiene Dispensers/ equipment/ sanitary bins maintenance Maintenance",{"$nulls":4},0,null,0,null,0,{"$f":"G21+I21+K21","v":0}]
[2.1,"\n1. Wall waste bins ( with inner dressing  bin bags) - x5\n2. Touch free Handpaper towel dispencer - (suitable for the supplied handpaper towel) x5\n3. She Packet Dispensers  x4\n4. Disinfactant Handsoap Dispenser (foam) (x5)\n5. Hand sanitiser dispenser x5\n6. Sanitary bins (with bin bags for sanitary waste disposal) 5\n7. Air-mist dispensers 6","Monthly","n/a",12,{"v":1590,"d":"R1,590.00"},{"v":19080,"d":"R19,080.00"},{"v":1330,"d":"R1,330.00"},{"v":15960,"d":"R15,960.00"},{"v":1530,"d":"R1,530.00"},{"v":18360,"d":"R18,360.00"},{"$f":"G22+I22+K22","v":{"v":53400,"d":"R53,400.00"}},"No"]
[3,"Supply of Hygiene Dispensers/ equipment/ sanitary bins (Once off supply & installation)",{"$nulls":9},{"$f":"SUM(L14:L22)","v":{"v":84000,"d":"R84,000.00"}}]
[3.1,"Wall waste bins ( with inner dressing  bin bags) - x5","once off",null,5,{"v":1110,"d":"R1,110.00"},{"$f":"F24*5","v":{"v":5550,"d":"R5,550.00"}},{"$nulls":4},{"$f":"G24+I24+K24","v":{"v":5550,"d":"R5,550.00"}},"No"]
[3.2,"2. Touch free Handpaper towel dispencer - (suitable for the supplied handpaper towel) x5","once off",null,5,{"v":990,"d":"R990.00"},{"$f":"F25*8","v":{"v":7920,"d":"R7,920.00"}},{"$nulls":4},{"v":7920,"d":"R7,920.00"},"No"]
[3.3,"3. She Packet Dispensers  x4","once off",null,4,{"v":590,"d":"R590.00"},{"$f":"F26*4","v":{"v":2360,"d":"R2,360.00"}},0,{"$nulls":3},{"v":2360,"d":"R2,360.00"},"No"]
[3.4,"4. Disinfactant Handsoap Dispenser (foam) x5","once off",null,5,{"v":990,"d":"R990.00"},{"$f":"F27*5","v":{"v":4950,"d":"R4,950.00"}},0,{"$nulls":3},{"v":4950,"d":"R4,950.00"},"No"]
[3.5,"5. Hand sanitiser dispenser x5","once off",null,5,{"v":990,"d":"R990.00"},{"$f":"F28*5","v":{"v":4950,"d":"R4,950.00"}},{"$nulls":4},{"v":4950,"d":"R4,950.00"},"No"]
[3.6,"6. Sanitary bins (with bin bags for sanitary waste disposal) x4","once off",null,4,{"v":1110,"d":"R1,110.00"},{"$f":"F29*4","v":{"v":4440,"d":"R4,440.00"}},0,{"$nulls":3},{"v":4440,"d":"R4,440.00"},"No"]
[3.7,"7. Air-mist dispensers x6","once off",null,3,{"v":660,"d":"R660.00"},{"$f":"F30*6","v":{"v":3960,"d":"R3,960.00"}},{"$nulls":4},{"v":3960,"d":"R3,960.00"},"Yes see revised no"]
[{"$nulls":7},{"$f":"SUM(H24:H30)","v":0},{"$nulls":3},{"$f":"SUM(L24:L30)","v":{"v":34130,"d":"R34,130.00"}}]
{"$rows_empty":25}
[null,"I, the bidder, confirm that the price(s) and rate(s) quoted cover all the goods and/or works specified in the bidding documents; that the price(s) or rate(s) cover all my obligations and I accept that any mistakes regarding price(s), rate(s) or calculations will be at my own risk.\n[Note: First convert to PDF, then add signature]"]
[null,null,"Name",{"$nulls":3},"Capacity"]
[]
[null,null,"Signature (above)",{"$nulls":3},"Date"]
[]
[null,"Wall waste bins ( with inner dressing  bin bags) - x5"]
[null,"Touch free Hand paper towel dispenser - (suitable for the supplied hand paper towel) x5"]
[null,"She Packet Dispensers  x4"]
[null,"Disinfectant Hand soap Dispenser (foam) (x)5"]
[null,"Hand sanitiser dispenser (5"]
[null,"Sanitary bins (with bin bags for sanitary waste disposal) x5"]
[null,"Air-mist dispensers 6"]